fUSD/lending_fUSD_20250523
["ID","MTS","AMOUNT","RATE_DAILY","PERIOD"]
[362058978,1747958649425,594.09143703,0.00027,120]
[362058981,1747958686902,288.92295095,0.00027,120]
[362058983,1747958737104,-173.7,0.00013699,2]
[362058984,1747958737129,-173.7,0.00020187,2]
[362058985,1747958737150,-173.7,0.00026676,2]
[362058986,1747958737171,-9.38374403,0.000279,2]
[362058987,1747958758088,-332.90358701,0.000279,2]
[362058988,1747958758109,-541.00527658,0.000292,5]
[362058990,1747958827388,-418.33575451,0.00029,5]
[362058991,1747958849140,-1677.22391169,0.000288,5]
[362058992,1747958853174,-23.77608831,0.000288,5]
[362058993,1747958853197,-620.06,0.00029959,2]
[362058994,1747958853218,-500.0,0.00029959,2]
[362058995,1747958853241,-1142.88103,0.00031112,2]
[362058996,1747958853264,-207.0,0.00031268,2]
[362058997,1747958853287,-207.0,0.00031268,2]
[362058998,1747958853309,-153.6,0.00031514,80]
[362058999,1747958853332,-892.76175866,0.00031553,2]
[362059018,1747959031429,-500.0,0.00025185,7]
[362059019,1747959031439,-135.95217993,0.00031553,2]
[362059020,1747959031523,-1443.88606141,0.00031553,2]
[362059021,1747959031539,-121.62994174,0.0003162,7]
[362059022,1747959031556,-28.37005826,0.0003162,7]
[362059023,1747959031565,-165.37,0.00031658,30]
[362059024,1747959031577,-160.51,0.00031699,2]
[362059025,1747959031588,-136.30091712,0.00031817,2]
[362059026,1747959031604,-263.69908288,0.00031817,2]
[362059027,1747959031614,-57.23445368,0.00031817,3]
[362059028,1747959031626,-874.76554632,0.00031817,3]
[362059029,1747959031635,-1188.58768777,0.00031818,2]
[362059039,1747959037635,-300.0,0.00031817,3]
[362059040,1747959037645,-13483.92231223,0.00031818,2]
[362059041,1747959037654,-495.51,0.00031826,2]
[362059042,1747959037663,-206.26,0.00031828,2]
[362059044,1747959037672,-209.17,0.00031853,120]
[362059046,1747959037682,-1000.0,0.00031871,2]
[362059048,1747959037691,-250.0,0.00031874,2]
[362059050,1747959037701,-1287.989298,0.00031889,4]
[362059052,1747959037710,-208.94949261,0.000319,25]
[362059054,1747959037719,-250.0,0.0003212,2]
[362059055,1747959037729,-620.06,0.00032222,2]
[362059056,1747959037739,-720.68376,0.0003255,2]
[362059057,1747959037748,-207.4,0.0003258,2]
[362059058,1747959037757,-1000.0,0.000326,20]
[362059059,1747959037766,-150.99,0.000326,2]
[362059060,1747959037775,-9979.31834102,0.000326,2]
[362059061,1747959037830,-20.67165898,0.000326,2]
[362059062,1747959037839,-2000.0,0.000326,2]
[362059063,1747959037848,-362.82834099,0.000326,2]
[362059064,1747959037859,-9637.16165901,0.000326,2]
[362059065,1747959037868,-150.0,0.00032604,2]
[362059066,1747959037877,-1000.0,0.00032605,2]
[362059067,1747959037886,-150.0,0.00032605,2]
[362059068,1747959037897,-150.0,0.00032608,2]
[362059069,1747959037906,-150.0,0.00032612,2]
[362059070,1747959037917,-200.0,0.00032613,2]
[362059071,1747959037928,-150.0,0.00032625,2]
[362059072,1747959037939,-150.0,0.00032626,2]
[362059073,1747959037949,-150.0,0.00032637,2]
[362059074,1747959037960,-150.0,0.00032659,2]
[362059075,1747959037970,-150.0,0.00032659,2]
[362059076,1747959037979,-150.0,0.00032665,2]
[362059077,1747959037990,-150.0,0.00032672,2]
[362059078,1747959037999,-150.0,0.00032689,2]
[362059079,1747959038012,-150.0,0.00032689,2]
[362059080,1747959038023,-150.0,0.00032693,2]
[362059081,1747959038036,-150.0,0.00032694,2]
[362059082,1747959038045,-150.0,0.00032695,2]
[362059083,1747959038054,-1000.0,0.000327,7]
[362059084,1747959038064,-700.0,0.000327,11]
[362059085,1747959038073,-438.11143036,0.00032707,2]
[362059086,1747959038082,-150.0,0.00032719,2]
[362059087,1747959038091,-150.0,0.00032745,2]
[362059088,1747959038100,-150.0,0.00032749,2]
[362059089,1747959038109,-150.0,0.00032751,2]
[362059090,1747959038118,-269.1558,0.00032754,2]
[362059091,1747959038127,-150.0,0.00032757,2]
[362059092,1747959038136,-575.44347987,0.00032765,29]
[362059093,1747959038146,-150.0,0.00032793,2]
[362059094,1747959038158,-200.0,0.00032799,10]
[362059095,1747959038168,-210.21,0.000328,2]
[362059096,1747959038178,-1400.0,0.000328,11]
[362059097,1747959038187,-150.0,0.00032802,2]
[362059098,1747959038196,-150.0,0.00032805,2]
[362059099,1747959038207,-1000.0,0.00032809,2]
[362059100,1747959038217,-150.0,0.00032811,2]
[362059101,1747959038227,-150.0,0.00032815,2]
[362059102,1747959038237,-150.0,0.0003282,2]
[362059103,1747959038247,-150.0,0.00032821,2]
[362059104,1747959038257,-1000.0,0.00032839,2]
[362059105,1747959038267,-4977.18962122,0.00032844,2]
[362059106,1747959038276,-150.0,0.00032844,2]
[362059107,1747959038285,-1000.0,0.0003285,2]
[362059108,1747959038295,-1648.59,0.00032854,5]
[362059109,1747959038304,-314.89109017,0.00032854,5]
[362059110,1747959038313,-420.0,0.00032854,5]
[362059111,1747959038323,-420.0,0.00032854,5]
[362059112,1747959038332,-420.0,0.00032854,5]
[362059113,1747959038341,-420.0,0.00032854,5]
[362059114,1747959038351,-420.0,0.00032854,5]
[362059115,1747959038360,-420.0,0.00032854,5]
[362059116,1747959038369,-420.0,0.00032854,5]
[362059117,1747959038379,-420.0,0.00032854,5]
[362059118,1747959038388,-196.51768496,0.00032854,5]
[362059119,1747959038445,-223.48231504,0.00032854,5]
[362059120,1747959038454,-352.30951562,0.00032854,5]
[362059130,1747959039681,-67.69048438,0.00032854,5]
[362059131,1747959039691,-420.0,0.00032854,5]
[362059132,1747959039700,-420.21,0.00032854,5]
[362059133,1747959039710,-228.06519093,0.00032854,5]
[362059134,1747959041083,-191.93480907,0.00032854,5]
[362059135,1747959041093,-420.0,0.00032854,5]
[362059136,1747959041102,-420.0,0.00032854,5]
[362059137,1747959041112,-420.0,0.00032854,5]
[362059138,1747959041122,-420.0,0.00032854,5]
[362059139,1747959041132,-420.0,0.00032854,5]
[362059140,1747959041141,-420.0,0.00032854,5]
[362059141,1747959041150,-420.0,0.00032854,5]
[362059142,1747959041164,-420.0,0.00032854,5]
[362059143,1747959041173,-420.0,0.00032854,5]
[362059144,1747959041183,-420.0,0.00032854,5]
[362059145,1747959041192,-420.0,0.00032854,5]
[362059146,1747959041202,-420.0,0.00032856,5]
[362059147,1747959041212,-420.0,0.00032856,5]
[362059148,1747959041222,-420.0,0.00032856,5]
[362059149,1747959041232,-420.0,0.00032856,5]
[362059150,1747959041242,-420.0,0.00032856,5]
[362059151,1747959041252,-420.0,0.00032856,5]
[362059152,1747959041262,-420.0,0.00032856,5]
[362059153,1747959041272,-420.0,0.00032856,5]
[362059154,1747959041281,-420.0,0.00032856,5]
[362059155,1747959041291,-420.0,0.00032856,5]
[362059156,1747959041300,-420.0,0.00032856,5]
[362059157,1747959041310,-420.0,0.00032856,5]
[362059158,1747959041320,-420.0,0.00032856,5]
[362059159,1747959041329,-420.0,0.00032856,5]
[362059160,1747959041339,-420.0,0.00032856,5]
[362059161,1747959041349,-420.0,0.00032856,5]
[362059162,1747959041359,-420.0,0.00032856,5]
[362059163,1747959041368,-420.0,0.00032856,5]
[362059164,1747959041378,-420.0,0.00032856,5]
[362059165,1747959041388,-245.20483,0.00032856,5]
[362059166,1747959041398,-420.0,0.00032856,5]
[362059167,1747959041407,-420.0,0.00032856,5]
[362059168,1747959041417,-420.0,0.00032856,5]
[362059169,1747959041427,-420.0,0.00032856,5]
[362059170,1747959041436,-420.0,0.00032856,5]
[362059171,1747959041446,-464.75,0.00032856,5]
[362059172,1747959041455,-420.0,0.00032856,5]
[362059173,1747959041465,-420.0,0.00032856,5]
[362059174,1747959041474,-420.0,0.00032856,5]
[362059175,1747959041484,-300.0,0.00032856,5]
[362059176,1747959041494,-420.0,0.00032856,5]
[362059177,1747959041504,-420.0,0.00032856,5]
[362059178,1747959041514,-125.59566939,0.00032856,5]
[362059182,1747959042507,-294.40433061,0.00032856,5]
[362059183,1747959042518,-420.0,0.00032856,5]
[362059184,1747959042527,-420.0,0.00032856,5]
[362059185,1747959042537,-482.75,0.00032856,5]
[362059186,1747959042547,-420.0,0.00032856,5]
[362059187,1747959042557,-420.0,0.00032856,5]
[362059188,1747959042567,-420.0,0.00032856,5]
[362059189,1747959042577,-420.0,0.00032856,5]
[362059190,1747959042588,-420.0,0.00032856,5]
[362059191,1747959042598,-420.0,0.00032856,5]
[362059192,1747959042608,-420.0,0.00032856,5]
[362059193,1747959042618,-420.0,0.00032856,5]
[362059194,1747959042627,-420.0,0.00032856,5]
[362059195,1747959042638,-420.0,0.00032856,5]
[362059196,1747959042647,-420.0,0.00032856,5]
[362059197,1747959042656,-420.0,0.00032856,5]
[362059198,1747959042667,-420.0,0.00032856,5]
[362059199,1747959042676,-420.0,0.00032856,5]
[362059200,1747959042685,-420.0,0.00032856,5]
[362059201,1747959042695,-480.98710425,0.00032856,5]
[362059202,1747959042704,-425.68,0.00032856,5]
[362059203,1747959042713,-420.0,0.00032856,5]
[362059204,1747959042723,-420.0,0.00032856,5]
[362059205,1747959042732,-1283.25930564,0.00032864,3]
[362059206,1747959042744,-9107.25894093,0.00032864,3]
[362059207,1747959042759,-1116.4,0.00032864,3]
[362059208,1747959042789,-2406.7210443,0.00032864,3]
[362059226,1747959045403,-674.95592,0.00032864,3]
[362059230,1747959045415,-2722.32958891,0.00032864,3]
[362059235,1747959045476,-76506.82076562,0.00032864,3]
[362059236,1747959045485,-1011.74,0.00032865,33]
[362059237,1747959045717,-151.0,0.00032866,7]
[362059238,1747959045797,-151.0,0.00032866,7]
[362059239,1747959045808,-151.0,0.00032866,7]
[362059240,1747959045818,-150.0,0.00032866,2]
[362059241,1747959045828,-687.0325732,0.00032868,2]
[362059242,1747959045838,-1670.2904261,0.00032868,2]
[362059243,1747959045848,-29522.3723498,0.00032868,2]
[362059244,1747959045859,-347.07130185,0.00032868,2]
[362059245,1747959045869,-6337.9863081,0.00032868,2]
[362059246,1747959045879,-546.74,0.00032872,5]
[362059248,1747959045889,-420.0,0.00032872,5]
[362059250,1747959045898,-420.0,0.00032872,5]
[362059252,1747959045908,-420.0,0.00032872,5]
[362059254,1747959045918,-420.0,0.00032872,5]
[362059256,1747959045928,-487.21,0.00032872,5]
[362059258,1747959045938,-420.0,0.00032872,5]
[362059260,1747959045948,-420.0,0.00032872,5]
[362059262,1747959045957,-420.0,0.00032872,5]
[362059264,1747959045968,-420.0,0.00032872,5]
[362059266,1747959045978,-3584.54,0.00032872,2]
[362059268,1747959045987,-420.0,0.00032872,5]
[362059270,1747959045997,-420.0,0.00032872,5]
[362059272,1747959046007,-420.0,0.00032872,5]
[362059273,1747959046017,-420.0,0.00032872,5]
[362059276,1747959046027,-420.0,0.00032872,5]
[362059278,1747959046037,-420.0,0.00032872,5]
[362059279,1747959046047,-578.19,0.00032872,5]
[362059281,1747959046056,-420.0,0.00032872,5]
[362059283,1747959046065,-420.0,0.00032872,5]
[362059285,1747959046075,-420.0,0.00032872,5]
[362059287,1747959046084,-420.0,0.00032872,5]
[362059289,1747959046094,-420.0,0.00032872,5]
[362059292,1747959046105,-420.0,0.00032872,5]
[362059293,1747959046114,-420.0,0.00032872,5]
[362059295,1747959046124,-420.0,0.00032872,5]
[362059297,1747959046133,-420.0,0.00032872,5]
[362059299,1747959046142,-420.0,0.00032872,5]
[362059301,1747959046154,-420.0,0.00032872,5]
[362059303,1747959046167,-420.0,0.00032872,5]
[362059305,1747959046176,-3136.060228,0.00032872,5]
[362059307,1747959046186,-420.0,0.00032872,5]
[362059309,1747959046195,-500.0,0.00032873,5]
[362059311,1747959046206,-420.0,0.00032873,5]
[362059313,1747959046215,-420.0,0.00032873,5]
[362059315,1747959046225,-420.0,0.00032873,5]
[362059317,1747959046235,-183.93785627,0.00032873,5]
[362059319,1747959046246,-420.0,0.00032873,5]
[362059321,1747959046256,-420.0,0.00032873,5]
[362059323,1747959046265,-420.0,0.00032873,5]
[362059325,1747959046275,-420.0,0.00032873,5]
[362059327,1747959046285,-420.0,0.00032873,5]
[362059329,1747959046294,-420.0,0.00032873,5]
[362059331,1747959046304,-420.0,0.00032873,5]
[362059333,1747959046314,-420.0,0.00032873,5]
[362059335,1747959046324,-420.0,0.00032873,5]
[362059337,1747959046333,-420.0,0.00032873,5]
[362059339,1747959046343,-420.0,0.00032873,5]
[362059341,1747959046353,-420.0,0.00032873,5]
[362059343,1747959046363,-420.0,0.00032873,5]
[362059344,1747959046372,-420.0,0.00032873,5]
[362059345,1747959046382,-420.0,0.00032873,5]
[362059346,1747959046392,-229.65021751,0.00032873,5]
[362059347,1747959046401,-420.0,0.00032873,5]
[362059348,1747959046410,-420.0,0.00032873,5]
[362059350,1747959046420,-420.0,0.00032873,5]
[362059352,1747959046429,-420.0,0.00032873,5]
[362059354,1747959046438,-250.0,0.00032873,5]
[362059356,1747959046448,-420.0,0.00032873,5]
[362059358,1747959046457,-420.0,0.00032873,5]
[362059360,1747959046467,-420.0,0.00032873,5]
[362059362,1747959046477,-420.0,0.00032873,5]
[362059364,1747959046487,-420.0,0.00032873,5]
[362059366,1747959046498,-420.0,0.00032873,5]
[362059368,1747959046511,-420.0,0.00032873,5]
[362059369,1747959046522,-420.0,0.00032873,5]
[362059370,1747959046532,-420.0,0.00032873,5]
[362059371,1747959046542,-420.0,0.00032873,5]
[362059372,1747959046551,-420.0,0.00032873,5]
[362059373,1747959046560,-420.0,0.00032873,5]
[362059374,1747959046570,-420.0,0.00032873,5]
[362059375,1747959046580,-420.0,0.00032873,5]
[362059376,1747959046589,-420.0,0.00032873,5]
[362059377,1747959046599,-420.0,0.00032873,5]
[362059378,1747959046609,-420.0,0.00032873,5]
[362059379,1747959046619,-420.0,0.00032873,5]
[362059380,1747959046629,-420.0,0.00032873,5]
[362059381,1747959046639,-420.0,0.00032873,5]
[362059382,1747959046649,-420.0,0.00032873,5]
[362059383,1747959046659,-810.63,0.00032873,5]
[362059384,1747959046669,-420.0,0.00032873,5]
[362059385,1747959046679,-420.0,0.00032873,5]
[362059386,1747959046689,-420.0,0.00032873,5]
[362059387,1747959046699,-420.0,0.00032873,5]
[362059388,1747959046711,-420.0,0.00032873,5]
[362059389,1747959046721,-420.0,0.00032873,5]
[362059390,1747959046731,-420.0,0.00032873,5]
[362059391,1747959046742,-420.0,0.00032873,5]
[362059392,1747959046751,-420.0,0.00032873,5]
[362059393,1747959046761,-420.0,0.00032873,5]
[362059394,1747959046770,-420.0,0.00032873,5]
[362059395,1747959046780,-420.0,0.00032873,5]
[362059396,1747959046790,-420.0,0.00032873,5]
[362059397,1747959046800,-420.0,0.00032873,5]
[362059398,1747959046810,-420.0,0.00032873,5]
[362059399,1747959046820,-420.0,0.00032873,5]
[362059400,1747959046829,-520.71107916,0.00032873,5]
[362059401,1747959046839,-420.0,0.00032873,5]
[362059402,1747959046849,-420.0,0.00032873,5]
[362059403,1747959046859,-420.0,0.00032873,5]
[362059404,1747959046868,-420.0,0.00032873,5]
[362059405,1747959046878,-420.0,0.00032873,5]
[362059406,1747959046887,-420.0,0.00032873,5]
[362059407,1747959046898,-420.0,0.00032873,5]
[362059408,1747959046907,-420.0,0.00032873,5]
[362059409,1747959046917,-420.0,0.00032873,5]
[362059410,1747959046927,-420.0,0.00032873,5]
[362059411,1747959046937,-420.0,0.00032873,5]
[362059412,1747959046947,-420.0,0.00032873,5]
[362059413,1747959046958,-420.0,0.00032873,5]
[362059414,1747959046968,-420.0,0.00032873,5]
[362059415,1747959046978,-420.0,0.00032873,5]
[362059416,1747959046987,-151.370234,0.00032873,5]
[362059417,1747959046999,-420.0,0.00032873,5]
[362059418,1747959047008,-420.0,0.00032873,5]
[362059419,1747959047018,-420.0,0.00032873,5]
[362059420,1747959047031,-420.0,0.00032873,5]
[362059421,1747959047041,-420.0,0.00032873,5]
[362059422,1747959047051,-420.0,0.00032873,5]
[362059423,1747959047060,-420.0,0.00032873,5]
[362059424,1747959047071,-420.0,0.00032873,5]
[362059425,1747959047082,-420.0,0.00032873,5]
[362059426,1747959047095,-420.0,0.00032873,5]
[362059427,1747959047104,-420.0,0.00032873,5]
[362059428,1747959047114,-420.0,0.00032873,5]
[362059429,1747959047125,-420.0,0.00032873,5]
[362059430,1747959047136,-420.0,0.00032873,5]
[362059431,1747959047147,-420.0,0.00032873,5]
[362059432,1747959047157,-420.0,0.00032873,5]
[362059433,1747959047169,-500.0,0.00032873,2]
[362059434,1747959047180,-420.0,0.00032873,5]
[362059435,1747959047190,-420.0,0.00032873,5]
[362059436,1747959047200,-420.0,0.00032873,5]
[362059437,1747959047210,-420.0,0.00032873,5]
[362059438,1747959047220,-420.0,0.00032873,5]
[362059439,1747959047230,-420.0,0.00032873,5]
[362059440,1747959047243,-420.0,0.00032873,5]
[362059441,1747959047255,-420.0,0.00032873,5]
[362059442,1747959047265,-420.0,0.00032873,5]
[362059443,1747959047275,-241.04604552,0.00032873,5]
[362059444,1747959047285,-420.0,0.00032873,5]
[362059445,1747959047295,-420.0,0.00032873,5]
[362059446,1747959047304,-420.0,0.00032873,5]
[362059447,1747959047314,-264.56131668,0.00032873,5]
[362059448,1747959047323,-420.0,0.00032873,5]
[362059449,1747959047333,-255.59431425,0.00032873,5]
[362059450,1747959047342,-420.0,0.00032873,5]
[362059451,1747959047352,-165.58054347,0.00032873,5]
[362059452,1747959047362,-420.0,0.00032873,5]
[362059453,1747959047371,-420.0,0.00032873,5]
[362059454,1747959047381,-420.0,0.00032873,5]
[362059455,1747959047390,-420.0,0.00032873,5]
[362059456,1747959047400,-420.0,0.00032873,5]
[362059457,1747959047409,-420.0,0.00032873,5]
[362059458,1747959047419,-420.0,0.00032873,5]
[362059459,1747959047428,-420.0,0.00032873,5]
[362059460,1747959047438,-420.0,0.00032873,5]
[362059461,1747959047448,-420.0,0.00032873,5]
[362059462,1747959047457,-310.10130027,0.00032873,5]
[362059463,1747959047467,-420.0,0.00032873,5]
[362059464,1747959047477,-420.0,0.00032873,5]
[362059465,1747959047487,-420.0,0.00032873,5]
[362059466,1747959047500,-420.0,0.00032873,5]
[362059467,1747959047510,-420.0,0.00032873,5]
[362059468,1747959047519,-420.0,0.00032873,5]
[362059469,1747959047529,-420.0,0.00032873,5]
[362059470,1747959047538,-420.0,0.00032873,5]
[362059471,1747959047548,-420.0,0.00032873,5]
[362059472,1747959047557,-420.0,0.00032873,5]
[362059473,1747959047566,-420.0,0.00032873,5]
[362059474,1747959047575,-1000.0,0.00032873,2]
[362059475,1747959047585,-420.0,0.00032873,5]
[362059476,1747959047595,-420.0,0.00032873,5]
[362059477,1747959047605,-420.0,0.00032873,5]
[362059478,1747959047614,-420.0,0.00032873,5]
[362059479,1747959047623,-420.0,0.00032873,5]
[362059480,1747959047633,-420.0,0.00032873,5]
[362059481,1747959047642,-420.0,0.00032873,5]
[362059482,1747959047652,-420.0,0.00032873,5]
[362059483,1747959047661,-420.0,0.00032873,5]
[362059484,1747959047670,-420.0,0.00032873,5]
[362059485,1747959047680,-420.0,0.00032873,5]
[362059486,1747959047689,-420.0,0.00032873,5]
[362059487,1747959047698,-420.0,0.00032873,5]
[362059488,1747959047707,-420.0,0.00032873,5]
[362059489,1747959047716,-556.65,0.00032873,5]
[362059490,1747959047725,-420.0,0.00032873,5]
[362059491,1747959047734,-420.0,0.00032873,5]
[362059492,1747959047746,-462.5,0.00032873,5]
[362059493,1747959047755,-420.0,0.00032873,5]
[362059494,1747959047764,-420.0,0.00032873,5]
[362059495,1747959047773,-420.0,0.00032873,5]
[362059496,1747959047782,-491.44,0.00032873,5]
[362059497,1747959047791,-420.0,0.00032873,5]
[362059498,1747959047801,-420.0,0.00032873,5]
[362059499,1747959047811,-420.0,0.00032873,5]
[362059500,1747959047820,-420.0,0.00032873,5]
[362059501,1747959047829,-420.0,0.00032873,5]
[362059502,1747959047840,-420.0,0.00032873,5]
[362059503,1747959047849,-420.0,0.00032873,5]
[362059504,1747959047858,-1676.19,0.00032873,5]
[362059505,1747959047869,-1097.8,0.00032873,5]
[362059506,1747959047879,-420.0,0.00032873,5]
[362059507,1747959047889,-420.0,0.00032873,5]
[362059508,1747959047899,-420.0,0.00032873,5]
[362059509,1747959047910,-1658.09,0.00032873,5]
[362059510,1747959047920,-516.35,0.00032873,5]
[362059511,1747959047931,-420.0,0.00032873,5]
[362059512,1747959047941,-420.0,0.00032873,5]
[362059513,1747959047951,-420.0,0.00032873,5]
[362059514,1747959047960,-420.0,0.00032873,5]
[362059515,1747959047971,-420.0,0.00032873,5]
[362059516,1747959047980,-420.0,0.00032873,5]
[362059517,1747959047990,-420.0,0.00032873,5]
[362059518,1747959048000,-420.0,0.00032873,5]
[362059519,1747959048009,-420.0,0.00032873,5]
[362059520,1747959048018,-420.0,0.00032873,5]
[362059521,1747959048027,-420.0,0.00032873,5]
[362059522,1747959048036,-1217.22,0.00032873,5]
[362059523,1747959048045,-420.0,0.00032873,5]
[362059524,1747959048056,-185.47567247,0.00032873,5]
[362059525,1747959048065,-420.0,0.00032873,5]
[362059526,1747959048074,-420.0,0.00032873,5]
[362059527,1747959048083,-420.0,0.00032873,5]
[362059528,1747959048092,-420.0,0.00032873,5]
[362059529,1747959048101,-3439.92,0.00032873,5]
[362059530,1747959048110,-239.85694569,0.00032873,5]
[362059531,1747959048121,-420.0,0.00032873,5]
[362059532,1747959048131,-420.0,0.00032873,5]
[362059533,1747959048140,-420.0,0.00032873,5]
[362059534,1747959048149,-232.5254185,0.00032873,5]
[362059535,1747959048160,-420.0,0.00032873,5]
[362059536,1747959048172,-1150.99,0.00032873,5]
[362059537,1747959048181,-420.0,0.00032873,5]
[362059538,1747959048191,-180.45287648,0.00032873,5]
[362059539,1747959048273,-239.54712352,0.00032873,5]
[362059540,1747959048283,-420.0,0.00032873,5]
[362059541,1747959048292,-847.52,0.00032873,5]
[362059542,1747959048301,-420.0,0.00032873,5]
[362059543,1747959048310,-420.0,0.00032873,5]
[362059544,1747959048320,-420.0,0.00032873,5]
[362059545,1747959048329,-420.0,0.00032873,5]
[362059546,1747959048338,-2726.19,0.00032873,5]
[362059547,1747959048347,-998.18,0.00032873,5]
[362059548,1747959048357,-420.0,0.00032873,5]
[362059549,1747959048366,-420.0,0.00032873,5]
[362059550,1747959048376,-420.0,0.00032873,5]
[362059551,1747959048385,-420.0,0.00032873,5]
[362059552,1747959048394,-420.0,0.00032873,5]
[362059553,1747959048403,-1903.37,0.00032873,5]
[362059554,1747959048413,-420.0,0.00032873,5]
[362059555,1747959048422,-420.0,0.00032873,5]
[362059556,1747959048432,-420.0,0.00032873,5]
[362059557,1747959048442,-169.05125335,0.00032873,5]
[362059558,1747959048451,-420.0,0.00032873,5]
[362059559,1747959048460,-420.0,0.00032873,5]
[362059560,1747959048470,-420.0,0.00032873,5]
[362059561,1747959048479,-420.0,0.00032873,5]
[362059562,1747959048488,-420.0,0.00032873,5]
[362059563,1747959048498,-420.0,0.00032873,5]
[362059564,1747959048508,-420.0,0.00032873,5]
[362059565,1747959048518,-420.0,0.00032873,5]
[362059566,1747959048527,-420.0,0.00032873,5]
[362059567,1747959048537,-420.0,0.00032873,5]
[362059568,1747959048547,-420.0,0.00032873,5]
[362059569,1747959048556,-420.0,0.00032873,5]
[362059570,1747959048566,-420.0,0.00032873,5]
[362059571,1747959048575,-420.0,0.00032873,5]
[362059572,1747959048585,-420.0,0.00032873,5]
[362059573,1747959048595,-607.28,0.00032873,5]
[362059574,1747959048605,-474.72,0.00032873,5]
[362059575,1747959048615,-420.0,0.00032873,5]
[362059576,1747959048625,-470.77,0.00032873,5]
[362059577,1747959048634,-420.0,0.00032873,5]
[362059578,1747959048644,-420.0,0.00032873,5]
[362059579,1747959048653,-420.0,0.00032873,5]
[362059580,1747959048663,-420.0,0.00032873,5]
[362059581,1747959048672,-3814.17,0.00032873,5]
[362059582,1747959048682,-420.0,0.00032873,5]
[362059583,1747959048692,-420.0,0.00032873,5]
[362059584,1747959048701,-420.0,0.00032873,5]
[362059585,1747959048710,-420.0,0.00032873,5]
[362059586,1747959048719,-420.0,0.00032873,5]
[362059587,1747959048728,-420.0,0.00032873,5]
[362059588,1747959048738,-420.0,0.00032873,5]
[362059589,1747959048748,-420.0,0.00032873,5]
[362059590,1747959048758,-420.0,0.00032873,5]
[362059591,1747959048768,-420.0,0.00032873,5]
[362059592,1747959048777,-420.0,0.00032873,5]
[362059593,1747959048787,-420.0,0.00032873,5]
[362059594,1747959048798,-544.15,0.00032873,5]
[362059595,1747959048807,-420.0,0.00032873,5]
[362059596,1747959048817,-420.0,0.00032873,5]
[362059597,1747959048827,-420.0,0.00032873,5]
[362059598,1747959048836,-420.0,0.00032873,5]
[362059599,1747959048846,-9713.8,0.00032873,5]
[362059600,1747959048855,-41.44702869,0.00032873,5]
[362059601,1747959048869,-378.55297131,0.00032873,5]
[362059602,1747959048879,-420.0,0.00032873,5]
[362059603,1747959048888,-420.0,0.00032873,5]
[362059604,1747959048899,-601.87,0.00032873,5]
[362059605,1747959048908,-420.0,0.00032873,5]
[362059606,1747959048918,-420.0,0.00032873,5]
[362059607,1747959048927,-420.0,0.00032873,5]
[362059608,1747959048937,-420.0,0.00032873,5]